bitfinex-derivatives/quotes_BNBF0:USTF0_20250630
["timestamp","ask_amount","ask_price","bid_price","bid_amount"]
[1751249102297,0.2659168,654.83,654.2,1.13436457]
[1751249102601,0.2659168,654.83,654.21,1.13436457]
[1751249102797,0.2659168,654.83,654.13,3.821]
[1751249102994,0.2659168,654.83,654.14,1.13440315]
[1751249103194,0.2659168,654.83,654.15,1.13440315]
[1751249103393,0.2659168,654.83,654.16,1.13440315]
[1751249103596,0.2659168,654.83,654.17,1.13440315]
[1751249103898,0.2659168,654.83,654.18,1.13440315]
[1751249104098,0.2659168,654.83,654.19,1.13440315]
[1751249104295,0.2659168,654.83,654.2,1.13440315]
[1751249104597,0.2659168,654.83,654.21,1.13440315]
[1751249104795,0.2659168,654.83,654.18,0.618]
[1751249104999,0.2659168,654.83,654.19,1.1344458]
[1751249105197,0.2659168,654.83,654.2,1.1344458]
[1751249105498,0.2659168,654.83,654.21,1.1344458]
[1751249105700,0.2659168,654.83,654.18,0.618]
[1751249105996,0.2659168,654.83,654.19,1.13446482]
[1751249106203,0.2659168,654.83,654.2,1.13446482]
[1751249106497,0.2659168,654.83,654.21,1.13446482]
[1751249106701,0.2659168,654.83,654.18,0.618]
[1751249106897,0.2659168,654.83,654.19,1.13448479]
[1751249107202,0.2659168,654.83,654.2,1.13448479]
[1751249107398,0.2659168,654.83,654.18,0.618]
[1751249107399,0.2659168,654.83,654.21,1.13448479]
[1751249107699,0.2659168,654.83,654.18,0.618]
[1751249107903,0.2659168,654.83,654.19,1.13450572]
[1751249108101,0.2659168,654.83,654.2,1.13450572]
[1751249108302,0.2659168,654.83,654.21,1.13450572]
[1751249108507,0.2659168,654.83,654.18,0.618]
[1751249108702,0.2659168,654.83,654.19,1.13452765]
[1751249108896,0.2659168,654.83,654.2,1.13452765]
[1751249109098,0.2659168,654.83,654.21,1.13452765]
[1751249109301,0.2659168,654.83,654.21,3.269]
[1751249110997,0.2659168,654.83,654.22,1.13457482]
[1751249111197,0.2659168,654.83,654.21,3.269]
[1751249111400,0.2659168,654.83,654.22,1.13460006]
[1751249111599,0.2659168,654.83,654.21,3.269]
[1751249111804,0.2659168,654.83,654.22,1.13460006]
[1751249112100,0.2659168,654.83,654.21,3.269]
[1751249112303,0.2659168,654.83,654.22,1.13462652]
[1751249112500,0.2659168,654.83,654.21,3.269]
[1751249112703,0.2659168,654.83,654.22,1.13462652]
[1751249112901,0.2659168,654.83,654.21,3.269]
[1751249113102,0.2659168,654.83,654.22,1.13463679]
[1751249113404,0.2659168,654.83,654.21,3.269]
[1751249113602,0.2659168,654.83,654.22,1.13465941]
[1751249113804,0.2659168,654.83,654.21,3.269]
[1751249113999,0.2659168,654.83,654.22,1.13465941]
[1751249114200,0.2659168,654.83,654.21,3.269]
[1751249114504,0.2659168,654.83,654.22,1.13469456]
[1751249114703,0.2659168,654.83,654.21,3.269]
[1751249114905,0.2659168,654.83,654.22,1.13469456]
[1751249115104,0.2659168,654.83,654.21,3.269]
[1751249115304,0.2659168,654.83,654.22,1.13470398]
[1751249115506,0.2659168,654.83,654.21,3.269]
[1751249115805,0.2659168,654.83,654.22,1.13473176]
[1751249116006,0.2659168,654.83,654.21,3.269]
[1751249116205,0.2659168,654.83,654.22,1.13473176]
[1751249116406,0.2659168,654.83,654.23,1.13473176]
[1751249116606,0.2659168,654.83,654.21,3.269]
[1751249116806,0.2659168,654.83,654.22,1.13477119]
[1751249117005,0.2659168,654.83,654.23,1.13477119]
[1751249117208,0.2659168,654.83,654.21,3.269]
[1751249117508,0.2659168,654.83,654.22,1.13481415]
[1751249117707,0.2659168,654.83,654.21,3.269]
[1751249117708,0.2659168,654.83,654.23,1.13481415]
[1751249117907,0.2659168,654.83,654.21,3.269]
[1751249118206,0.2659168,654.83,654.22,1.13481415]
[1751249118406,0.2659168,654.83,654.23,1.13481415]
[1751249118609,0.2659168,654.83,654.21,3.269]
[1751249118807,0.2659168,654.83,654.22,1.13485996]
[1751249119008,0.2659168,654.83,654.23,1.13485996]
[1751249119208,0.2659168,654.83,654.21,3.269]
[1751249119413,0.2659168,654.83,654.22,1.13488935]
[1751249119610,0.2659168,654.83,654.23,1.13488935]
[1751249119810,0.2659168,654.83,654.21,3.269]
[1751249120014,0.2659168,654.83,654.22,1.13488937]
[1751249120211,0.2659168,654.83,654.21,3.269]
[1751249120212,0.2659168,654.83,654.23,1.13488937]
[1751249120515,0.2659168,654.83,654.21,3.269]
[1751249120814,0.2659168,654.83,654.22,1.13489745]
[1751249121112,0.2659168,654.83,654.21,3.269]
[1751249122511,0.2659168,654.83,654.18,0.618]
[1751249122713,0.2659168,654.83,654.19,1.13496755]
[1751249122911,0.2659168,654.83,654.18,0.618]
[1751249123116,0.2659168,654.83,654.19,1.13496755]
[1751249123412,0.2659168,654.83,653.98,1.1450378]
[1751249123616,0.2659168,654.83,653.99,1.13501011]
[1751249123812,0.2659168,654.83,654.0,1.13501011]
[1751249124011,0.2659168,654.83,654.01,1.13501011]
[1751249124215,0.2659168,654.83,654.02,1.13501011]
[1751249124416,0.2659168,654.83,654.03,1.13501011]
[1751249124616,0.2659168,654.83,654.04,1.13501011]
[1751249124916,0.2659168,654.83,654.05,1.13501011]
[1751249125112,0.2659168,654.83,654.06,1.13501011]
[1751249125317,0.2659168,654.83,654.07,1.13501011]
[1751249125516,0.2659168,654.83,654.08,1.13501011]
[1751249125816,0.2659168,654.83,654.09,1.13501011]
[1751249126017,0.2659168,654.83,654.1,1.13501011]
[1751249126226,0.2659168,654.83,654.11,1.13501011]
[1751249126413,0.2659168,654.83,654.12,1.13501011]
[1751249126614,0.2659168,654.83,654.13,1.13501011]
[1751249126814,0.2659168,654.83,654.14,1.13501011]
[1751249127018,0.2659168,654.83,654.15,1.13501011]
[1751249127220,0.2659168,654.83,654.16,1.13501011]
[1751249127515,0.2659168,654.83,654.17,1.13501011]
[1751249127715,0.2659168,654.83,654.18,1.13501011]
[1751249128015,0.2659168,654.83,654.19,1.13501011]
[1751249128214,0.2659168,654.83,654.2,1.13501011]
[1751249128416,0.2659168,654.83,654.21,1.13501011]
[1751249128618,0.2659168,654.83,654.1,0.618]
[1751249128816,0.2659168,654.83,654.11,1.13434269]
[1751249129017,0.2659168,654.83,654.12,1.13434269]
[1751249129216,0.2659168,654.83,654.13,1.13434269]
[1751249129520,0.2659168,654.83,654.14,1.13434269]
[1751249129815,0.2659168,654.83,654.15,1.13434269]
[1751249130020,0.2659168,654.83,654.16,1.13434269]
[1751249130220,0.2659168,654.83,654.17,1.13434269]
[1751249130420,0.2659168,654.83,654.18,1.13434269]
[1751249130625,0.2659168,654.83,654.19,1.13434269]
[1751249130817,0.2659168,654.83,654.2,1.13434269]
[1751249131019,0.2659168,654.83,654.21,1.13434269]
[1751249131219,0.2659168,654.83,654.22,1.13434269]
[1751249131419,0.2659168,654.83,654.23,1.13434269]
[1751249131620,0.2659168,654.83,654.24,1.13434269]
[1751249131920,0.2659168,654.83,654.25,1.13434269]
[1751249132115,0.2659168,654.83,654.26,1.13434269]
[1751249132318,0.2659168,654.83,654.27,1.13434269]
[1751249132520,0.2659168,654.83,654.28,1.13434269]
[1751249132719,0.2659168,654.83,654.29,1.13434269]
[1751249133018,0.2659168,654.83,654.3,1.13434269]
[1751249133222,0.2659168,654.83,654.1,0.618]
[1751249133521,0.2659168,654.83,654.11,1.12759008]
[1751249133718,0.2659168,654.83,654.12,1.12759008]
[1751249134018,0.2659168,654.83,654.13,1.12759008]
[1751249134220,0.2659168,654.83,654.1,0.618]
[1751249134221,0.2659168,654.83,654.14,1.12759008]
[1751249134418,0.2659168,654.83,654.15,1.12759008]
[1751249134618,0.2659168,654.83,654.16,1.12759008]
[1751249134821,0.2659168,654.83,654.17,1.12759008]
[1751249135018,0.2659168,654.83,654.18,1.12759008]
[1751249135221,0.2659168,654.83,654.19,1.12759008]
[1751249135522,0.2659168,654.83,654.2,1.12759008]
[1751249135822,0.2659168,654.83,654.21,1.12759008]
[1751249136018,0.2659168,654.83,654.22,1.12759008]
[1751249136217,0.2659168,654.83,654.23,1.12759008]
[1751249136518,0.2659168,654.83,654.24,1.12759008]
[1751249136719,0.2659168,654.83,654.25,1.12759008]
[1751249136920,0.2659168,654.83,654.26,1.12759008]
[1751249137120,0.2659168,654.83,654.27,1.12759008]
[1751249137322,0.2659168,654.83,654.28,1.12759008]
[1751249137523,0.2659168,654.83,654.29,1.12759008]
[1751249137719,0.2659168,654.83,654.3,1.12759008]
[1751249137922,0.2659168,654.83,654.1,0.618]
[1751249138224,0.2659168,654.83,654.11,1.12754693]
[1751249138421,0.2659168,654.83,654.12,1.12754693]
[1751249138619,0.2659168,654.83,654.13,1.12754693]
[1751249138924,0.2659168,654.83,654.14,1.12754693]
[1751249139125,0.2659168,654.83,654.15,1.12754693]
[1751249139321,0.2659168,654.83,654.16,1.12754693]
[1751249139522,0.2659168,654.83,654.17,1.12754693]
[1751249139726,0.2659168,654.83,654.18,1.12754693]
[1751249140022,0.2659168,654.83,654.19,1.12754693]
[1751249140224,0.2659168,654.83,654.2,1.12754693]
[1751249140424,0.2659168,654.83,654.21,1.12754693]
[1751249140724,0.2659168,654.83,654.22,1.12754693]
[1751249140924,0.2659168,654.83,654.23,1.12754693]
[1751249141127,0.2659168,654.83,654.24,1.12754693]
[1751249141330,0.2659168,654.83,654.25,1.12754693]
[1751249141523,0.2659168,654.83,654.26,1.12754693]
[1751249141727,0.2659168,654.83,654.27,1.12754693]
[1751249141925,0.2659168,654.83,654.28,1.12754693]
[1751249142126,0.2659168,654.83,654.29,1.12754693]
[1751249142328,0.2659168,654.83,654.3,1.12754693]
[1751249142628,0.2659168,654.83,654.31,1.12754693]
[1751249142823,0.2659168,654.83,654.32,1.12754693]
[1751249143027,0.2659168,654.83,654.33,1.12754693]
[1751249143228,0.2659168,654.83,654.34,1.12754693]
[1751249143524,0.2659168,654.83,654.35,1.12754693]
[1751249143726,0.2659168,654.83,654.36,1.12754693]
[1751249143926,0.2659168,654.83,654.37,1.12754693]
[1751249144125,0.2659168,654.83,654.1,0.618]
[1751249144324,0.2659168,654.83,654.11,1.11776011]
[1751249144524,0.2659168,654.83,654.12,1.11776011]
[1751249144730,0.2659168,654.83,654.13,1.11776011]
[1751249144925,0.2659168,654.83,654.14,1.11776011]
[1751249145227,0.2659168,654.83,654.15,1.11776011]
[1751249145429,0.2659168,654.83,654.16,1.11776011]
[1751249145627,0.2659168,654.83,654.17,1.11776011]
[1751249145928,0.2659168,654.83,654.18,1.11776011]
[1751249146225,0.2659168,654.83,654.19,1.11776011]
[1751249146426,0.2659168,654.83,654.2,1.11776011]
[1751249146629,0.2659168,654.83,654.21,1.11776011]
[1751249146830,0.2659168,654.83,654.22,1.11776011]
[1751249147130,0.2659168,654.83,654.23,1.11776011]
[1751249147329,0.2659168,654.83,654.24,1.11776011]
[1751249147526,0.2659168,654.83,654.25,1.11776011]
[1751249147829,0.2659168,654.83,654.26,1.11776011]
[1751249148033,0.2659168,654.83,654.27,1.11776011]
[1751249148230,0.2659168,654.83,654.28,1.11776011]
[1751249148433,0.2659168,654.83,654.29,1.11776011]
[1751249148632,0.2659168,654.83,654.3,1.11776011]
[1751249148933,0.2659168,654.83,654.31,1.11776011]
[1751249149131,0.2659168,654.83,654.32,1.11776011]
[1751249149333,0.2659168,654.83,654.33,1.11776011]
[1751249149530,0.2659168,654.83,654.34,1.11776011]
[1751249149828,0.2659168,654.83,654.1,0.618]
[1751249150132,0.2659168,654.83,654.11,1.11710636]
[1751249150434,0.2659168,654.83,654.12,1.11710636]
[1751249150630,0.2659168,654.83,654.13,1.11710636]
[1751249150832,0.2659168,654.83,654.14,1.11710636]
[1751249151033,0.2659168,654.83,654.15,1.11710636]
[1751249151231,0.2659168,654.83,654.16,1.11710636]
[1751249151435,0.2659168,654.83,654.17,1.11710636]
[1751249151636,0.2659168,654.83,654.18,1.11710636]
[1751249151941,0.2659168,654.83,654.19,1.11710636]
[1751249152135,0.2659168,654.83,654.2,1.11710636]
[1751249152335,0.2659168,654.83,654.21,1.11710636]
[1751249152531,0.2659168,654.83,654.22,1.11710636]
[1751249152732,0.2659168,654.83,654.23,1.11710636]
[1751249152938,0.2659168,654.83,654.24,1.11710636]
[1751249153132,0.2659168,654.83,654.25,1.11710636]
[1751249153332,0.2659168,654.83,654.26,1.11710636]
[1751249153632,0.2659168,654.83,654.1,0.618]
[1751249153633,0.2659168,654.83,654.27,1.11710636]
[1751249153837,0.2659168,654.83,654.28,1.11710636]
[1751249154032,0.2659168,654.83,654.29,1.11710636]
[1751249154231,0.2659168,654.83,654.3,1.11710636]
[1751249154432,0.2659168,654.83,654.31,1.11710636]
[1751249154635,0.2659168,654.83,654.32,1.11710636]
[1751249154834,0.2659168,654.83,654.33,1.11710636]
[1751249155136,0.2659168,654.83,654.34,1.11710636]
[1751249155332,0.2659168,654.83,654.1,0.618]
[1751249155538,0.2659168,654.83,654.11,1.11680148]
[1751249155837,0.2659168,654.83,654.12,1.11680148]
[1751249156038,0.2659168,654.83,654.1,0.618]
[1751249156039,0.2659168,654.83,654.13,1.11680148]
[1751249156240,0.2659168,654.83,654.14,1.11680148]
[1751249156435,0.2659168,654.83,654.15,1.11680148]
[1751249156644,0.2659168,654.83,654.16,1.11680148]
[1751249156836,0.2659168,654.83,654.17,1.11680148]
[1751249157034,0.2659168,654.83,653.84,1.52673255]
[1751249157035,0.2659168,654.83,654.18,1.11680148]
[1751249157235,0.2659168,654.83,654.19,1.11680148]
[1751249157446,0.2659168,654.83,654.2,1.11680148]
[1751249157644,0.2659168,654.83,654.21,1.11680148]
[1751249157939,0.2659168,654.83,654.22,1.11680148]
[1751249158140,0.2659168,654.83,654.23,1.11680148]
[1751249158441,0.2659168,654.83,654.24,1.11680148]
[1751249158740,0.2659168,654.83,654.25,1.11680148]
[1751249158940,0.2659168,654.83,654.26,1.11680148]
[1751249159140,0.2659168,654.83,654.27,1.11680148]
[1751249159337,0.2659168,654.83,654.28,1.11680148]
[1751249159539,0.2659168,654.83,654.29,1.11680148]
[1751249159737,0.2659168,654.83,654.3,1.11680148]
[1751249159937,0.2659168,654.83,654.31,1.11680148]
[1751249160137,0.2659168,654.83,654.32,1.11680148]
[1751249160336,0.2659168,654.83,654.31,0.618]
[1751249160540,0.2659168,654.83,654.32,1.11682628]
[1751249160737,0.2659168,654.83,654.31,0.618]
[1751249160938,0.2659168,654.83,654.32,1.11682628]
[1751249161139,0.2659168,654.83,654.31,0.618]
[1751249161337,0.2659168,654.83,654.32,1.11681678]
[1751249161541,0.2659168,654.83,654.31,0.618]
[1751249161738,0.2659168,654.83,654.32,1.11686784]
[1751249161937,0.2659168,654.83,654.31,0.618]
[1751249162141,0.2659168,654.83,654.32,1.11686784]
[1751249162439,0.2659168,654.83,654.31,0.618]
[1751249162641,0.2659168,654.83,654.32,1.11686182]
[1751249162837,0.2659168,654.83,654.31,0.618]
[1751249163040,0.2659168,654.83,654.32,1.11686182]
[1751249163336,0.2659168,654.83,654.31,0.618]
[1751249163541,0.2659168,654.83,654.32,1.11685926]
[1751249163739,0.2659168,654.83,654.31,0.618]
[1751249163944,0.2659168,654.83,654.32,1.11685926]
[1751249164239,0.2659168,654.83,654.31,0.618]
[1751249164441,0.2659168,654.83,654.32,1.11686015]
[1751249164643,0.2659168,654.83,654.31,0.618]
[1751249164939,0.2659168,654.83,654.32,1.11702116]
[1751249165144,0.2659168,654.83,654.31,0.618]
[1751249165441,0.2659168,654.83,654.32,1.11702547]
[1751249165642,0.2659168,654.83,654.31,0.618]
[1751249165838,0.2659168,654.83,654.32,1.11702547]
[1751249166042,0.2659168,654.83,654.31,0.618]
[1751249166241,0.2659168,654.83,654.32,1.11703325]
[1751249166440,0.2659168,654.83,654.31,0.618]
[1751249166644,0.2659168,654.83,654.32,1.11703325]
[1751249166844,0.2659168,654.83,654.31,0.618]
[1751249167045,0.2659168,654.83,654.32,1.11703326]
[1751249167346,0.2659168,654.83,654.31,0.618]
[1751249169246,0.2659168,654.83,654.32,1.11709966]
[1751249169545,0.2659168,654.83,654.31,0.618]
[1751249169746,0.2659168,654.83,654.32,1.11709966]
[1751249169949,0.2659168,654.83,654.31,0.618]
[1751249170249,0.2659168,654.83,654.32,1.11711591]
[1751249170449,0.2659168,654.83,654.31,0.618]
[1751249170646,0.2659168,654.83,654.32,1.11712373]
[1751249170846,0.2659168,654.83,654.31,0.618]
[1751249175051,0.2659168,654.83,654.22,6.427]
[1751249175255,0.2659168,654.83,654.23,1.11729652]
[1751249175452,0.2659168,654.83,654.24,1.11729652]
[1751249175655,0.2659168,654.83,654.25,1.11729652]
[1751249175953,0.2659168,654.83,654.26,1.11729652]
[1751249176151,0.2659168,654.83,654.27,1.11729652]
[1751249176352,0.2659168,654.83,654.28,1.11729652]
[1751249176552,0.2659168,654.83,654.22,6.427]
[1751249176756,0.2659168,654.83,654.23,1.11732563]
[1751249177051,0.2659168,654.83,654.24,1.11732563]
[1751249177251,0.2659168,654.83,654.25,1.11732563]
[1751249177451,0.2659168,654.83,654.26,1.11732563]
[1751249177656,0.2659168,654.83,654.27,1.11732563]
[1751249177851,0.2659168,654.83,654.28,1.11732563]
[1751249178057,0.2659168,654.83,654.25,0.618]
[1751249178253,0.2659168,654.83,654.26,1.11742895]
[1751249178554,0.2659168,654.83,654.27,1.11742895]
[1751249178750,0.2659168,654.83,654.28,1.11742895]
[1751249178952,0.2659168,654.83,654.25,0.618]
[1751249179156,0.2659168,654.83,654.26,1.11742886]
[1751249179354,0.2659168,654.83,654.27,1.11742886]
[1751249179553,0.2659168,654.83,654.28,1.11742886]
[1751249179753,0.2659168,654.83,654.25,0.618]
[1751249179957,0.2659168,654.83,654.26,1.1174876]
[1751249180457,0.2659168,654.83,654.25,0.618]
[1751249185258,0.2659168,654.83,654.26,1.11776675]
[1751249185463,0.2659168,654.83,654.27,1.11776675]
[1751249185758,0.2659168,654.83,654.28,1.11776675]
[1751249185962,0.2659168,654.83,654.29,1.11776675]
[1751249186158,0.2659168,654.83,654.3,1.11776675]
[1751249186361,0.2659168,654.83,654.31,1.11776675]
[1751249186562,0.2659168,654.83,654.32,1.11776675]
[1751249186862,0.2659168,654.83,654.33,1.11776675]
[1751249187062,0.2659168,654.83,654.34,1.11776675]
[1751249187361,0.2659168,654.83,654.35,1.11776675]
[1751249187658,0.2659168,654.83,654.25,0.618]
[1751249187857,0.2659168,654.83,654.36,3.341]
[1751249191367,0.2659168,654.83,654.37,0.617]
[1751249205180,0.2659168,654.83,654.38,1.12082598]
[1751249205381,0.2659168,654.83,654.37,0.617]
[1751249205581,0.2659168,654.83,654.38,1.12085377]
[1751249205777,0.2659168,654.83,654.37,0.617]
[1751249205979,0.2659168,654.83,654.38,1.12085373]
[1751249206279,0.2659168,654.83,654.37,0.617]
[1751249206482,0.2659168,654.83,654.38,1.12087425]
[1751249206682,0.2659168,654.83,654.37,0.617]
[1751249206880,0.2659168,654.83,654.38,1.12087425]
[1751249207080,0.2659168,654.83,654.37,0.617]
[1751249207383,0.2659168,654.83,654.38,1.12089585]
[1751249207684,0.2659168,654.83,654.37,0.617]
[1751249207884,0.2659168,654.83,654.38,1.12089589]
[1751249208083,0.2659168,654.83,654.37,0.617]
[1751249208279,0.2659168,654.83,654.38,1.12092512]
[1751249208479,0.2659168,654.83,654.37,0.617]
[1751249208681,0.2659168,654.83,654.38,1.12090075]
[1751249208882,0.2659168,654.83,654.39,1.12090075]
[1751249209179,0.2659168,654.83,654.37,0.617]
[1751249209180,0.2659168,654.83,654.4,1.12090075]
[1751249209379,0.2659168,654.83,654.41,1.12090075]
[1751249209678,0.2659168,654.83,654.42,1.12090075]
[1751249209882,0.2659168,654.83,654.43,1.12090075]
[1751249210084,0.2659168,654.83,654.44,1.12090075]
[1751249210281,0.2659168,654.83,654.45,1.12090075]
[1751249210485,0.2659168,654.83,654.36,3.341]
[1751249210486,0.2659168,654.83,654.46,1.12090075]
[1751249210681,0.2659168,654.83,654.36,3.341]
[1751249210981,0.2659168,654.83,654.37,1.12004927]
[1751249211186,0.2659168,654.83,654.38,1.12004927]
[1751249211384,0.2659168,654.83,654.39,1.12004927]
[1751249211581,0.2659168,654.83,654.4,1.12004927]
[1751249211782,0.2659168,654.83,654.22,2.606]
[1751249211783,0.2659168,654.83,654.41,1.12004927]
[1751249211982,0.2659168,654.83,654.42,1.12004927]
[1751249212186,0.2659168,654.83,654.43,1.12004927]
[1751249212381,0.2659168,654.83,654.11,1.14307127]
[1751249212586,0.2659168,654.83,654.12,1.11971909]
[1751249212884,0.2659168,654.83,654.13,1.11971909]
[1751249213085,0.2659168,654.83,654.14,1.11971909]
[1751249213285,0.2659168,654.83,654.15,1.11971909]
[1751249213482,0.2659168,654.83,654.16,1.11971909]
[1751249213687,0.2659168,654.83,654.17,1.11971909]
[1751249213883,0.2659168,654.83,654.18,1.11971909]
[1751249214086,0.2659168,654.83,654.19,1.11971909]
[1751249214285,0.2659168,654.83,654.2,1.11971909]
[1751249214485,0.2659168,654.83,654.21,1.11971909]
[1751249214686,0.2659168,654.83,654.22,1.11971909]
[1751249214887,0.2659168,654.83,654.23,1.11971909]
[1751249215088,0.2659168,654.83,654.24,1.11971909]
[1751249215284,0.2659168,654.83,654.25,1.11971909]
[1751249215589,0.2659168,654.83,654.26,1.11971909]
[1751249215792,0.2659168,654.83,654.27,1.11971909]
[1751249215987,0.2659168,654.83,654.28,1.11971909]
[1751249216289,0.2659168,654.83,654.29,1.11971909]
[1751249216490,0.2659168,654.83,654.3,1.11971909]
[1751249216690,0.2659168,654.83,654.31,1.11971909]
[1751249216888,0.2659168,654.83,654.26,2.562]
[1751249216889,0.2659168,654.83,654.32,1.11971909]
[1751249217090,0.2659168,654.83,654.33,1.11971909]
[1751249217291,0.2659168,654.83,654.34,1.11971909]
[1751249217590,0.2659168,654.83,654.35,1.11971909]
[1751249217890,3.81029092,655.35,654.36,1.11971909]
[1751249218090,0.26582133,654.91,654.37,1.11971909]
[1751249218287,3.81029092,655.35,654.38,1.11971909]
[1751249218592,0.26581829,654.91,654.39,1.11971909]
[1751249218891,3.81029092,655.35,654.4,1.11971909]
[1751249219087,0.26581626,654.91,654.26,2.562]
[1751249219288,0.26581626,654.91,654.27,1.1194764]
[1751249219587,0.26582946,654.91,654.28,1.1194764]
[1751249219788,0.26582946,654.91,654.29,1.1194764]
[1751249219990,0.26582946,654.91,654.3,1.1194764]
[1751249220287,0.26582946,654.91,654.31,1.1194764]
[1751249220490,0.26582946,654.91,654.32,1.1194764]
[1751249220691,0.26582946,654.91,654.33,1.1194764]
[1751249220891,0.26582946,654.91,654.34,1.1194764]
[1751249221089,0.26582946,654.91,654.35,1.1194764]
[1751249221393,0.26582946,654.91,654.36,1.1194764]
[1751249221593,0.26582946,654.91,654.37,1.1194764]
[1751249221793,0.26582946,654.91,654.38,1.1194764]
[1751249221992,0.26582946,654.91,654.39,1.1194764]
[1751249222192,5.33440728,655.63,654.4,1.1194764]
[1751249222390,0.26578581,655.04,654.41,1.1194764]
[1751249222595,0.26578581,655.04,654.42,1.1194764]
[1751249222795,3.81029092,655.81,654.43,1.1194764]
[1751249222992,0.26575942,655.04,654.44,1.1194764]
[1751249223291,3.81029092,655.81,654.45,1.1194764]
[1751249223490,0.26575637,654.95,654.46,1.1194764]
[1751249223792,3.81029092,655.77,654.47,1.1194764]
[1751249223996,0.26575435,654.95,654.48,1.1194764]
[1751249224198,3.81029092,655.77,654.26,2.562]
[1751249224490,3.81029092,655.77,654.27,1.11922424]
[1751249224696,3.81029092,655.74,654.28,1.11922424]
[1751249224892,3.81029092,655.74,654.29,1.11922424]
[1751249225197,3.81029092,655.76,654.3,1.11922424]
[1751249225392,0.2657787,655.38,654.31,1.11922424]
[1751249225595,0.2657787,655.38,654.32,1.11922424]
[1751249225791,0.2657787,655.38,654.33,1.11922424]
[1751249226092,0.2657787,655.38,654.34,1.11922424]
[1751249226293,0.2657787,655.38,654.35,1.11922424]
[1751249226492,0.2657787,655.38,654.36,1.11922424]
[1751249226697,0.2657787,655.38,654.37,1.11922424]
[1751249226897,0.2657787,655.38,654.38,1.11922424]
[1751249227096,0.2657787,655.38,654.39,1.11922424]
[1751249227294,0.2657787,655.38,654.4,1.11922424]
[1751249227596,0.2657787,655.38,654.41,1.11922424]
[1751249227795,0.2657787,655.38,654.42,1.11922424]
[1751249228097,0.2657787,655.38,654.22,1.14307127]
[1751249228098,0.2657787,655.38,654.43,1.11922424]
[1751249228395,0.2657787,655.38,654.44,1.11922424]
[1751249228594,0.2657787,655.38,654.45,1.11922424]
[1751249228793,0.2657787,655.38,654.46,1.11922424]
[1751249228993,0.2657787,655.38,654.47,1.11922424]
[1751249229300,0.2657787,655.38,654.48,1.11922424]
[1751249229497,0.2657787,655.38,654.47,0.617]
[1751249229498,0.2657787,655.38,654.49,1.11922424]
[1751249229698,0.2657787,655.38,654.5,1.11922424]
[1751249229900,0.2657787,655.38,654.51,1.11922424]
[1751249230098,0.2657787,655.38,654.52,1.11922424]
[1751249230297,0.2657787,655.38,654.53,1.11922424]
[1751249230501,0.2657787,655.38,654.54,1.11922424]
[1751249230699,0.2657787,655.38,654.55,1.11922424]
[1751249231001,0.2657787,655.38,654.56,3.66022424]
[1751249231197,0.2657787,655.38,654.56,2.541]
[1751249247614,0.2657787,655.38,654.57,0.617]
[1751249252319,0.2657787,655.38,654.58,2.716]
[1751249258322,0.2657787,655.38,654.59,1.11368068]
[1751249258519,0.2657787,655.38,654.58,2.716]
[1751249258718,0.2657787,655.38,654.59,1.11360003]
[1751249258925,0.2657787,655.38,654.58,2.716]
[1751249259223,0.2657787,655.38,654.59,1.11349411]
[1751249259520,0.2657787,655.38,654.58,2.716]
[1751249259726,0.2657787,655.38,654.59,1.11336332]
[1751249259925,0.2657787,655.38,654.58,2.716]
[1751249260224,0.2657787,655.38,654.59,1.11336332]
[1751249260426,0.2657787,655.38,654.58,2.716]
[1751249260626,0.2657787,655.38,654.59,1.11321966]
[1751249260823,0.2657787,655.38,654.58,2.716]
[1751249261027,0.2657787,655.38,654.59,1.11321966]
[1751249261226,0.2657787,655.38,654.58,2.716]
[1751249263829,0.2657787,655.38,654.59,2.574]
[1751249271133,0.2657787,655.38,654.6,1.11426568]
[1751249271332,0.2657787,655.38,654.61,1.11426568]
[1751249271532,0.2657787,655.38,654.62,1.11426568]
[1751249271731,0.2657787,655.38,654.6,0.617]
[1751249271936,0.2657787,655.38,654.61,1.11425585]
[1751249272233,0.2657787,655.38,654.62,1.11425585]
[1751249272437,0.2657787,655.38,654.6,0.617]
[1751249272632,0.2657787,655.38,654.61,1.11431463]
[1751249272836,0.2657787,655.38,654.62,1.11431463]
[1751249273133,0.2657787,655.38,654.6,0.617]
[1751249273337,0.2657787,655.38,654.61,1.11438831]
[1751249273634,0.2657787,655.38,654.62,1.11451056]
[1751249273838,0.2657787,655.38,654.6,0.617]
[1751249274034,0.2657787,655.38,654.61,1.11441136]
[1751249274236,0.2657787,655.38,654.6,0.617]
[1751249274439,0.2657787,655.38,654.61,1.11450559]
[1751249274639,0.2657787,655.38,654.6,0.617]
[1751249274840,0.2657787,655.38,654.61,1.114505]
[1751249275037,0.2657787,655.38,654.6,0.617]
[1751249275337,0.2657787,655.38,654.61,1.11459809]
[1751249275638,0.2657787,655.38,654.6,0.617]
[1751249275840,0.2657787,655.38,654.61,1.11468409]
[1751249276137,0.2657787,655.38,654.62,1.11477258]